[Event "FIDE WYCC Open U14 2023"]
[Site "Montesilvano"]
[Date "2023.11.14"]
[Round "2.30"]
[White "Hobson, Kenneth"]
[Black "Tamer Waguih, Farid"]
[Result "1/2-1/2"]
[ECO "B13"]
[WhiteElo "2142"]
[BlackElo "1893"]
[Annotator "NA"]
[PlyCount "107"]
[EventDate "2023.11.13"]
[EventType "swiss"]
[EventCountry "ITA"]
[SourceTitle "playchess.com"]
[Source "ChessBase"]
[SourceQuality "1"]
[TimeControl "40/5400+30:1800+30"]

1. e4 {[%emt 0:00:02]} c6 {[%emt 0:00:05]} 2. d4 {[%emt 0:00:43]} d5 {[%emt 0:00:06]} 3. exd5 {[%emt 0:00:31]} cxd5 {[%emt 0:00:05]} 4. Bd3 {[%emt 0:00:07]} Nc6 {[%emt 0:00:03]} 5. c3 {[%emt 0:00:10]} Qc7 6. Na3 {[%emt 0:01:54]} a6 {[%emt 0:00:55]} 7. Nc2 {[%emt 0:01:45]} Nf6 {[%emt 0:03:12]} 8. Bg5 {[%emt 0:08:36]} Bg4 {[%emt 0:06:34]} 9. f3 {[%emt 0:07:18]} Bh5 {[%emt 0:01:08]} 10. Ne2 {[%emt 0:00:59]} e6 {[%emt 0:02:53]} 11. Bf4 {[%emt 0:10:04]} Bd6 {[%emt 0:06:40]} 12. Bxd6 {[%emt 0:00:46]} Qxd6 {[%emt 0:00:03]} 13. O-O {[%emt 0:01:05]} O-O {[%emt 0:01:14]} 14. Ng3 {[%emt 0:01:05]} Bg6 {[%emt 0:01:21]} 15. f4 {[%emt 0:00:39]} Bxd3 {[%emt 0:03:32]} 16. Qxd3 {[%emt 0:01:43]} Nd7 {[%emt 0:02:42]} 17. Ne3 {[%emt 0:04:29]} f5 {[%emt 0:05:01]} 18. a4 {[%emt 0:03:33]} Nf6 {[%emt 0:05:14]} 19. Qe2 {[%emt 0:06:10]} h6 {[%emt 0:08:30]} 20. Rae1 {[%emt 0:02:30]} Rae8 {[%emt 0:05:49]} 21. Qd1 {[%emt 0:07:17]} Ne7 {[%emt 0:06:45]} 22. Nc2 {[%emt 0:09:13]} Ng6 {[%emt 0:06:34]} 23. Ne2 {[%emt 0:03:39]} Ne4 {[%emt 0:04:31]} 24. Nb4 {[%emt 0:00:33]} Ne7 {[%emt 0:02:10]} 25. Nd3 {[%emt 0:01:40]} Nc6 {[%emt 0:01:31]} 26. Ng3 {[%emt 0:02:03]} Re7 {[%emt 0:05:31]} 27. Nxe4 {[%emt 0:07:52]} fxe4 {[%emt 0:00:58]} 28. Ne5 {[%emt 0:00:08]} Nxe5 {[%emt 0:00:55]} 29. fxe5 {[%emt 0:00:04]} Qd7 {[%emt 0:02:26]} 30. Rxf8+ {[%emt 0:05:17]} Kxf8 {[%emt 0:00:01]} 31. a5 {[%emt 0:02:02]} Qb5 {[%emt 0:03:47]} 32. Rf1+ {[%emt 0:01:47]} Rf7 {[%emt 0:00:37]} 33. Rxf7+ {[%emt 0:00:26]} Kxf7 {[%emt 0:00:41]} 34. b4 {[%emt 0:01:52]} Qc6 {[%emt 0:02:11]} 35. Qd2 {[%emt 0:02:12]} Qc4 {[%emt 0:02:18]} 36. h4 {[%emt 0:00:24]} Qb3 {[%emt 0:02:37]} 37. Kf2 {[%emt 0:01:39]} Qc4 {[%emt 0:01:06]} 38. Qe3 {[%emt 0:01:18]} Qa2+ {[%emt 0:00:58]} 39. Kg3 {[%emt 0:00:59]} Qc4 {[%emt 0:00:37]} 40. Qd2 {[%emt 0:00:00]} Qf1 {[%emt 0:00:00]} 41. Qe3 {[%emt 0:06:43]} Qc4 {[%emt 0:02:14]} 42. h5 {[%emt 0:02:20]} Qf1 {[%emt 0:01:30]} 43. Qd2 {[%emt 0:03:22]} Qf5 {[%emt 0:04:49]} 44. Qe2 {[%emt 0:06:31]} Qg5+ {[%emt 0:01:02]} 45. Kh2 {[%emt 0:01:01]} Qf4+ {[%emt 0:01:57]} 46. g3 {[%emt 0:01:43]} Qc1 {[%emt 0:01:36]} 47. b5 {[%emt 0:01:06]} e3 {[%emt 0:01:54]} 48. bxa6 {[%emt 0:00:45]} bxa6 {[%emt 0:05:29]} 49. Qxa6 {[%emt 0:01:29]} Qd2+ {[%emt 0:04:45]} 50. Kh3 {[%emt 0:00:14]} e2 {[%emt 0:00:48]} 51. Qb7+ {[%emt 0:02:27]} Kg8 {[%emt 0:01:02]} 52. Qb8+ {[%emt 0:00:16]} Kh7 {[%emt 0:02:42]} 53. Qb1+ {[%emt 0:00:06]} Kg8 {[%emt 0:00:09]} 54. Qb8+ {[%emt 0:00:19]} 1/2-1/2

[Event "FIDE WYCC Open U14 2023"]
[Site "Montesilvano"]
[Date "2023.11.14"]
[Round "2.31"]
[White "Prokhorov, Aleksey"]
[Black "Bazilius, Augustinas"]
[Result "1/2-1/2"]
[ECO "B23"]
[WhiteElo "1869"]
[BlackElo "2138"]
[Annotator "NA"]
[PlyCount "142"]
[EventDate "2023.11.13"]
[EventType "swiss"]
[EventCountry "ITA"]
[SourceTitle "playchess.com"]
[Source "ChessBase"]
[SourceQuality "1"]
[TimeControl "40/5400+30:1800+30"]

1. e4 {[%emt 0:01:02]} c5 {[%emt 0:00:26]} 2. Nc3 {[%emt 0:01:02]} d6 3. g3 {[%emt 0:00:55]} Nc6 {[%emt 0:00:38]} 4. Bg2 {[%emt 0:01:04]} g6 {[%emt 0:00:33]} 5. f4 {[%emt 0:01:00]} Bg7 {[%emt 0:01:07]} 6. Nf3 {[%emt 0:01:15]} e6 {[%emt 0:00:30]} 7. O-O {[%emt 0:01:17]} Nge7 {[%emt 0:00:25]} 8. d3 {[%emt 0:00:56]} O-O {[%emt 0:00:05]} 9. Be3 {[%emt 0:01:00]} Nd4 {[%emt 0:00:28]} 10. e5 {[%emt 0:00:59]} Bd7 {[%emt 0:00:07]} 11. Ne4 {[%emt 0:01:12]} Nef5 {[%emt 0:01:12]} 12. Bf2 {[%emt 0:01:30]} Nxf3+ {[%emt 0:00:02]} 13. Qxf3 {[%emt 0:01:07]} Bc6 {[%emt 0:00:08]} 14. c3 {[%emt 0:01:13]} Rc8 {[%emt 0:02:51]} 15. d4 {[%emt 0:05:12]} h5 {[%emt 0:01:34]} 16. Rfc1 {[%emt 0:16:47]} Bd5 {[%emt 0:05:37]} 17. Qe2 {[%emt 0:05:06]} cxd4 {[%emt 0:09:29]} 18. cxd4 {[%emt 0:00:39]} Qa5 {[%emt 0:15:36]} 19. Nc3 {[%emt 0:02:47]} Bxg2 {[%emt 0:01:21]} 20. Kxg2 {[%emt 0:00:12]} d5 {[%emt 0:05:04]} 21. Qb5 {[%emt 0:09:11]} Qxb5 {[%emt 0:01:51]} 22. Nxb5 {[%emt 0:00:14]} a6 {[%emt 0:00:33]} 23. Nd6 {[%emt 0:01:19]} Nxd6 {[%emt 0:01:11]} 24. exd6 {[%emt 0:00:11]} Rfd8 {[%emt 0:11:20]} 25. d7 {[%emt 0:09:31]} Rxc1 {[%emt 0:00:29]} 26. Rxc1 {[%emt 0:00:07]} Rxd7 {[%emt 0:00:04]} 27. Rc8+ {[%emt 0:00:12]} Bf8 {[%emt 0:00:54]} 28. Be1 {[%emt 0:00:23]} Kg7 {[%emt 0:00:10]} 29. Ba5 {[%emt 0:00:16]} Be7 {[%emt 0:01:31]} 30. Kf3 {[%emt 0:04:41]} f6 {[%emt 0:02:19]} 31. h3 {[%emt 0:01:43]} Bd6 {[%emt 0:00:40]} 32. b3 {[%emt 0:00:28]} Kf7 {[%emt 0:03:28]} 33. Bb6 {[%emt 0:05:29]} e5 {[%emt 0:07:35]} 34. fxe5 {[%emt 0:03:09]} fxe5 {[%emt 0:01:51]} 35. dxe5 {[%emt 0:00:10]} Bxe5 {[%emt 0:00:09]} 36. g4 {[%emt 0:00:40]} hxg4+ {[%emt 0:00:05]} 37. hxg4 {[%emt 0:00:11]} Ke6 {[%emt 0:08:09]} 38. Re8+ {[%emt 0:03:18]} Re7 {[%emt 0:00:09]} 39. Rxe7+ {[%emt 0:01:59]} Kxe7 {[%emt 0:00:09]} 40. Bc5+ {[%emt 0:00:00]} Bd6 {[%emt 0:00:00]} 41. Bd4 {[%emt 0:00:33]} Ke6 {[%emt 0:00:38]} 42. Ke3 {[%emt 0:00:52]} Be5 {[%emt 0:00:49]} 43. Bb6 {[%emt 0:00:17]} Kd6 {[%emt 0:01:16]} 44. Kd3 {[%emt 0:00:31]} Bb2 {[%emt 0:03:29]} 45. Ke3 {[%emt 0:02:50]} Ba3 {[%emt 0:00:45]} 46. Kd4 {[%emt 0:02:58]} Bb4 {[%emt 0:02:37]} 47. Bd8 {[%emt 0:00:50]} Bc5+ {[%emt 0:00:23]} 48. Kd3 {[%emt 0:00:33]} Ke5 {[%emt 0:01:36]} 49. Bg5 {[%emt 0:00:15]} Bf2 {[%emt 0:01:11]} 50. Bh6 {[%emt 0:01:20]} d4 {[%emt 0:04:42]} 51. Ke2 {[%emt 0:23:47]} Be3 {[%emt 0:01:41]} 52. Bxe3 {[%emt 0:00:44]} dxe3 {[%emt 0:00:01]} 53. Kxe3 {[%emt 0:00:11]} a5 {[%emt 0:10:36]} 54. Kf3 {[%emt 0:07:10]} b5 {[%emt 0:02:44]} 55. Ke3 {[%emt 0:02:01]} a4 {[%emt 0:02:14]} 56. b4 {[%emt 0:04:59]} a3 {[%emt 0:06:49]} 57. g5 {[%emt 0:00:09]} Kf5 {[%emt 0:00:30]} 58. Kd4 {[%emt 0:00:13]} Kxg5 {[%emt 0:00:33]} 59. Kc5 {[%emt 0:00:10]} Kf5 {[%emt 0:00:24]} 60. Kxb5 {[%emt 0:00:13]} g5 {[%emt 0:00:31]} 61. Ka6 {[%emt 0:00:40]} g4 {[%emt 0:01:20]} 62. b5 {[%emt 0:00:06]} g3 {[%emt 0:00:02]} 63. b6 {[%emt 0:00:05]} g2 {[%emt 0:00:09]} 64. b7 {[%emt 0:00:04]} g1=Q {[%emt 0:00:26]} 65. b8=Q {[%emt 0:00:07]} Qc1 {[%emt 0:03:03]} 66. Ka5 {[%emt 0:01:43]} Qb2 {[%emt 0:00:18]} 67. Qg8 {[%emt 0:00:07]} Ke5 {[%emt 0:00:49]} 68. Ka4 {[%emt 0:00:12]} Kd6 {[%emt 0:00:10]} 69. Qc4 {[%emt 0:00:32]} Kd7 {[%emt 0:00:13]} 70. Qb3 {[%emt 0:00:17]} Qxb3+ {[%emt 0:00:05]} 71. Kxb3 {[%emt 0:00:06]} Kc6 {[%emt 0:00:04]} 1/2-1/2

[Event "FIDE WYCC Open U14 2023"]
[Site "Montesilvano"]
[Date "2023.11.14"]
[Round "2.32"]
[White "Tregubenko, Nikolay"]
[Black "Zhang, Kendrick Botong"]
[Result "1-0"]
[ECO "B47"]
[WhiteElo "2138"]
[BlackElo "1876"]
[Annotator "ChessBase"]
[PlyCount "191"]
[EventDate "2023.11.13"]
[EventType "swiss"]
[EventCountry "ITA"]
[SourceTitle "playchess.com"]
[Source "ChessBase"]
[SourceQuality "1"]
[TimeControl "40/5400+30:1800+30"]

1. e4 {[%emt 0:00:27]} c5 {[%emt 0:00:06]} 2. Nf3 {[%emt 0:00:27]} e6 {[%emt 0:00:29]} 3. d4 {[%emt 0:00:31]} cxd4 {[%emt 0:00:21]} 4. Nxd4 {[%emt 0:00:07]} Nc6 {[%emt 0:00:07]} 5. Nc3 Qc7 {[%emt 0:00:29]} 6. f4 {[%emt 0:01:44]} a6 {[%emt 0:06:56]} 7. Nxc6 {[%emt 0:00:51]} Qxc6 {[%emt 0:04:57]} 8. Bd3 {[%emt 0:00:57]} Nf6 {[%emt 0:12:30]} 9. Qe2 {[%emt 0:01:19]} Bb4 {[%emt 0:04:40]} 10. Bd2 {[%emt 0:00:51]} d5 {[%emt 0:08:56]} 11. e5 {[%emt 0:04:08]} Nd7 {[%emt 0:02:22]} 12. O-O-O {[%emt 0:01:12]} Nc5 {[%emt 0:06:17]} 13. Kb1 {[%emt 0:06:37]} Nxd3 {[%emt 0:08:19]} 14. Qxd3 {[%emt 0:02:01]} Be7 {[%emt 0:07:31]} 15. g4 {[%emt 0:35:02]} Bd7 {[%emt 0:04:18]} 16. f5 {[%emt 0:06:50]} O-O-O {[%emt 0:07:18]} 17. Be3 {[%emt 0:04:33]} b5 {[%emt 0:04:04]} 18. Qd4 {[%emt 0:09:44]} b4 {[%emt 0:03:34]} 19. fxe6 {[%emt 0:03:43]} Bxe6 {[%emt 0:01:06]} 20. Ne2 {[%emt 0:01:03]} f6 {[%emt 0:05:34]} 21. exf6 {[%emt 0:04:26]} gxf6 {[%emt 0:04:40]} 22. h3 {[%emt 0:01:25]} Bf7 {[%emt 0:04:16]} 23. Nf4 {[%emt 0:01:26]} Bg6 {[%emt 0:00:26]} 24. Rh2 {[%emt 0:02:16]} Be4 {[%emt 0:01:04]} 25. Nd3 {[%emt 0:00:46]} a5 {[%emt 0:02:08]} 26. Qa7 {[%emt 0:05:07]} Qc7 {[%emt 0:00:26]} 27. Qa6+ {[%emt 0:01:04]} Kb8 {[%emt 0:00:35]} 28. Rf2 {[%emt 0:02:20]} Rd6 {[%emt 0:00:25]} 29. Qb5+ {[%emt 0:00:09]} Kc8 {[%emt 0:00:34]} 30. Bf4 {[%emt 0:01:13]} Qb6 {[%emt 0:00:14]} 31. Qc5+ {[%emt 0:01:14]} Qxc5 {[%emt 0:00:39]} 32. Nxc5 {[%emt 0:00:01]} Rdd8 {[%emt 0:00:37]} 33. Nxe4 {[%emt 0:00:20]} dxe4 {[%emt 0:00:04]} 34. Kc1 {[%emt 0:01:10]} Bc5 {[%emt 0:00:50]} 35. Re2 {[%emt 0:00:24]} Rxd1+ {[%emt 0:00:30]} 36. Kxd1 {[%emt 0:00:00]} Re8 {[%emt 0:00:31]} 37. Ke1 {[%emt 0:02:35]} Bd4 {[%emt 0:00:27]} 38. b3 {[%emt 0:00:46]} Kb7 {[%emt 0:00:25]} 39. Be3 {[%emt 0:00:35]} Bc3+ {[%emt 0:00:40]} 40. Kf2 {[%emt 0:00:00]} f5 {[%emt 0:00:00]} 41. gxf5 {[%emt 0:02:05]} Kc6 {[%emt 0:14:12]} 42. Kf1 {[%emt 0:03:59]} Rf8 {[%emt 0:05:29]} 43. Rf2 {[%emt 0:01:41]} Kd5 {[%emt 0:04:15]} 44. Ke2 {[%emt 0:00:17]} Bf6 {[%emt 0:02:36]} 45. Rf1 {[%emt 0:02:47]} Rc8 {[%emt 0:00:51]} 46. Rd1+ {[%emt 0:01:16]} Kc6 {[%emt 0:02:17]} 47. Bf4 {[%emt 0:01:32]} Rd8 {[%emt 0:03:51]} 48. Rxd8 {[%emt 0:13:32]} Bxd8 {[%emt 0:00:05]} 49. Be5 {[%emt 0:01:08]} Kd5 {[%emt 0:00:08]} 50. Bb2 {[%emt 0:00:07]} Bb6 {[%emt 0:01:40]} 51. Kf1 {[%emt 0:00:20]} Bc5 {[%emt 0:00:40]} 52. Kg2 {[%emt 0:00:24]} Bd6 {[%emt 0:00:27]} 53. f6 {[%emt 0:01:12]} Ke6 {[%emt 0:00:32]} 54. Bd4 {[%emt 0:01:10]} Bc7 {[%emt 0:00:27]} 55. Kf2 {[%emt 0:00:31]} Bd8 {[%emt 0:00:30]} 56. Ke3 {[%emt 0:06:07]} Bxf6 {[%emt 0:00:08]} 57. Bb6 {[%emt 0:00:05]} Kf5 {[%emt 0:00:52]} 58. Bxa5 {[%emt 0:00:05]} Bg5+ {[%emt 0:00:32]} 59. Ke2 {[%emt 0:00:09]} Be7 {[%emt 0:00:19]} 60. c3 {[%emt 0:00:32]} bxc3 {[%emt 0:00:29]} 61. Bxc3 {[%emt 0:00:01]} Kf4 {[%emt 0:00:40]} 62. Be1 {[%emt 0:00:16]} e3 {[%emt 0:00:34]} 63. a4 {[%emt 0:00:19]} Ke4 {[%emt 0:00:18]} 64. a5 {[%emt 0:00:18]} Kd4 {[%emt 0:00:26]} 65. b4 {[%emt 0:00:33]} Bd8 {[%emt 0:00:38]} 66. b5 {[%emt 0:00:09]} Kc5 {[%emt 0:00:38]} 67. b6 {[%emt 0:00:09]} Bg5 {[%emt 0:00:26]} 68. Kf3 {[%emt 0:00:55]} Kc6 {[%emt 0:00:32]} 69. h4 {[%emt 0:00:03]} Bh6 {[%emt 0:00:14]} 70. Bc3 {[%emt 0:00:18]} Bf8 {[%emt 0:00:47]} 71. Kxe3 {[%emt 0:00:12]} Be7 {[%emt 0:00:04]} 72. h5 {[%emt 0:00:08]} Bd8 {[%emt 0:00:18]} 73. Ke4 {[%emt 0:00:08]} Be7 {[%emt 0:00:09]} 74. Kf5 {[%emt 0:00:04]} Bf8 {[%emt 0:00:41]} 75. Ke6 {[%emt 0:00:22]} Bc5 {[%emt 0:00:29]} 76. Kf7 {[%emt 0:00:09]} Be3 {[%emt 0:00:22]} 77. Kg7 {[%emt 0:00:05]} h6 {[%emt 0:00:13]} 78. Kg6 {[%emt 0:00:07]} Bf4 {[%emt 0:00:12]} 79. Bd4 {[%emt 0:00:12]} Kb7 {[%emt 0:00:17]} 80. Bg7 {[%emt 0:00:24]} Bd2 {[%emt 0:00:17]} 81. Bxh6 {[%emt 0:00:03]} Bxa5 {[%emt 0:00:10]} 82. Be3 {[%emt 0:00:03]} Bc3 {[%emt 0:00:35]} 83. h6 {[%emt 0:00:05]} Bb2 {[%emt 0:00:06]} 84. h7 {[%emt 0:00:04]} Bh8 {[%emt 0:00:05]} 85. Bh6 {[%emt 0:00:16]} Kxb6 {[%emt 0:00:10]} 86. Bg7 {[%emt 0:00:01]} Kc6 {[%emt 0:00:12]} 87. Bxh8 {[%emt 0:00:05]} Kd7 {[%emt 0:00:04]} 88. Ba1 {[%emt 0:00:24]} Ke7 {[%emt 0:00:04]} 89. h8=Q {[%emt 0:00:07]} Ke6 {[%emt 0:00:03]} 90. Qe5+ {[%emt 0:00:08]} Kd7 {[%emt 0:00:03]} 91. Kf6 {[%emt 0:00:09]} Kd8 {[%emt 0:00:04]} 92. Qe7+ {[%emt 0:00:04]} Kc8 {[%emt 0:00:04]} 93. Ke6 {[%emt 0:00:06]} Kb8 {[%emt 0:00:06]} 94. Kd6 {[%emt 0:00:16]} Ka8 {[%emt 0:00:04]} 95. Kc6 {[%emt 0:00:04]} Kb8 {[%emt 0:00:03]} 96. Qb7# {[%emt 0:00:04]} 1-0

[Event "FIDE WYCC Open U14 2023"]
[Site "Montesilvano"]
[Date "2023.11.14"]
[Round "2.33"]
[White "Zaragoza Alanis, Miguel Arnulfo"]
[Black "Malinowsky, Levi"]
[Result "1/2-1/2"]
[ECO "B90"]
[WhiteElo "1838"]
[BlackElo "2135"]
[Annotator "NA"]
[PlyCount "63"]
[EventDate "2023.11.13"]
[EventType "swiss"]
[EventCountry "ITA"]
[SourceTitle "playchess.com"]
[Source "ChessBase"]
[SourceQuality "1"]
[TimeControl "40/5400+30:1800+30"]

1. e4 {[%emt 0:00:02]} c5 {[%emt 0:00:06]} 2. Nf3 {[%emt 0:00:05]} d6 {[%emt 0:00:04]} 3. d4 {[%emt 0:00:06]} cxd4 {[%emt 0:00:05]} 4. Nxd4 {[%emt 0:00:08]} Nf6 {[%emt 0:00:06]} 5. Nc3 {[%emt 0:00:06]} a6 {[%emt 0:00:08]} 6. f3 {[%emt 0:00:05]} e5 {[%emt 0:00:37]} 7. Nb3 {[%emt 0:00:03]} Be6 8. Be3 {[%emt 0:03:59]} h5 {[%emt 0:02:31]} 9. Nd5 {[%emt 0:00:45]} Bxd5 {[%emt 0:00:44]} 10. exd5 {[%emt 0:00:03]} Nbd7 {[%emt 0:01:42]} 11. c4 {[%emt 0:03:14]} g6 {[%emt 0:02:25]} 12. Be2 {[%emt 0:02:35]} Bg7 {[%emt 0:04:57]} 13. O-O {[%emt 0:00:58]} O-O {[%emt 0:01:39]} 14. Qd2 {[%emt 0:01:28]} b6 {[%emt 0:01:54]} 15. Rac1 {[%emt 0:04:51]} a5 {[%emt 0:03:15]} 16. Na1 {[%emt 0:01:59]} Nc5 {[%emt 0:10:53]} 17. Nc2 {[%emt 0:00:38]} Nfd7 {[%emt 0:03:39]} 18. Na3 {[%emt 0:03:43]} f5 {[%emt 0:05:04]} 19. Nb5 {[%emt 0:02:59]} Qe7 {[%emt 0:02:15]} 20. Bh6 {[%emt 0:06:22]} Rae8 {[%emt 0:06:14]} 21. Bxg7 {[%emt 0:05:36]} Kxg7 {[%emt 0:00:10]} 22. Rcd1 {[%emt 0:11:11]} h4 {[%emt 0:04:59]} 23. Nc7 {[%emt 0:02:41]} Rd8 {[%emt 0:07:39]} 24. Rfe1 {[%emt 0:04:18]} h3 {[%emt 0:01:46]} 25. g3 {[%emt 0:01:20]} f4 {[%emt 0:02:57]} 26. g4 {[%emt 0:03:42]} Nf6 {[%emt 0:01:28]} 27. Nb5 {[%emt 0:00:22]} Nxg4 {[%emt 0:12:31]} 28. fxg4 {[%emt 0:13:02]} f3 {[%emt 0:00:01]} 29. Rf1 {[%emt 0:02:29]} fxe2 {[%emt 0:00:36]} 30. Qxe2 {[%emt 0:00:02]} Qd7 {[%emt 0:09:30]} 31. Kh1 {[%emt 0:03:33]} g5 {[%emt 0:04:37]} 32. Nc3 {[%emt 0:17:52]} 1/2-1/2

[Event "FIDE WYCC Open U14 2023"]
[Site "Montesilvano"]
[Date "2023.11.14"]
[Round "2.34"]
[White "Vingris, Mikelis"]
[Black "Hernandez Mendez, Iker"]
[Result "1-0"]
[ECO "B07"]
[WhiteElo "2127"]
[BlackElo "1919"]
[Annotator "NA"]
[PlyCount "87"]
[EventDate "2023.11.13"]
[EventType "swiss"]
[EventCountry "ITA"]
[SourceTitle "playchess.com"]
[Source "ChessBase"]
[SourceQuality "1"]
[TimeControl "40/5400+30:1800+30"]

1. e4 {[%emt 0:00:13]} d6 {[%emt 0:00:37]} 2. d4 {[%emt 0:00:18]} Nf6 {[%emt 0:00:07]} 3. Nc3 {[%emt 0:00:06]} g6 {[%emt 0:00:06]} 4. Be3 {[%emt 0:00:13]} Bg7 5. Qd2 {[%emt 0:01:13]} c6 {[%emt 0:01:54]} 6. f3 {[%emt 0:03:46]} Qa5 {[%emt 0:07:13]} 7. g4 {[%emt 0:08:29]} b5 {[%emt 0:04:30]} 8. h4 {[%emt 0:05:25]} b4 {[%emt 0:05:00]} 9. Nce2 {[%emt 0:09:10]} h5 {[%emt 0:00:39]} 10. g5 {[%emt 0:01:20]} Nfd7 {[%emt 0:00:52]} 11. Nh3 {[%emt 0:09:18]} Nb6 {[%emt 0:02:57]} 12. Nc1 {[%emt 0:01:43]} Ba6 {[%emt 0:06:33]} 13. Nb3 {[%emt 0:04:33]} Qa4 {[%emt 0:00:18]} 14. Bxa6 {[%emt 0:22:22]} Nxa6 {[%emt 0:01:02]} 15. Qe2 {[%emt 0:02:10]} c5 {[%emt 0:10:21]} 16. O-O {[%emt 0:04:33]} c4 {[%emt 0:04:02]} 17. Nc1 {[%emt 0:04:12]} Rc8 {[%emt 0:01:20]} 18. c3 {[%emt 0:02:03]} bxc3 {[%emt 0:02:36]} 19. bxc3 {[%emt 0:00:16]} Qa3 {[%emt 0:01:50]} 20. Qc2 {[%emt 0:01:16]} Na4 {[%emt 0:01:06]} 21. Ne2 {[%emt 0:00:36]} Nb4 {[%emt 0:00:29]} 22. Qc1 {[%emt 0:04:35]} Qxc1 {[%emt 0:00:12]} 23. Rfxc1 {[%emt 0:01:08]} Nd3 {[%emt 0:02:20]} 24. Rcb1 {[%emt 0:00:10]} Ndb2 {[%emt 0:05:12]} 25. Nf2 {[%emt 0:01:35]} O-O {[%emt 0:02:17]} 26. Nd1 {[%emt 0:00:36]} Rb8 {[%emt 0:04:36]} 27. Nxb2 {[%emt 0:00:18]} Nxb2 {[%emt 0:00:08]} 28. f4 {[%emt 0:05:47]} Rb7 {[%emt 0:02:01]} 29. f5 {[%emt 0:01:05]} Rfb8 {[%emt 0:01:02]} 30. Rf1 {[%emt 0:01:18]} Na4 {[%emt 0:05:05]} 31. f6 {[%emt 0:04:10]} Bf8 {[%emt 0:03:16]} 32. Bc1 {[%emt 0:01:20]} e6 {[%emt 0:04:55]} 33. Ba3 {[%emt 0:01:03]} d5 {[%emt 0:00:23]} 34. Bxf8 {[%emt 0:00:04]} Kxf8 {[%emt 0:00:06]} 35. exd5 {[%emt 0:00:18]} exd5 {[%emt 0:00:06]} 36. Rac1 {[%emt 0:01:08]} Rb2 {[%emt 0:02:11]} 37. Nf4 {[%emt 0:00:03]} Rxa2 {[%emt 0:01:57]} 38. Rfe1 {[%emt 0:00:21]} Nb6 {[%emt 0:06:50]} 39. Re5 {[%emt 0:00:19]} Re8 {[%emt 0:00:42]} 40. Rxe8+ {[%emt 0:00:00]} Kxe8 {[%emt 0:00:00]} 41. Re1+ {[%emt 0:05:46]} Kf8 {[%emt 0:04:35]} 42. Re7 {[%emt 0:02:07]} Kg8 {[%emt 0:18:15]} 43. Re8+ {[%emt 0:01:02]} Kh7 {[%emt 0:00:09]} 44. Re7 1-0

[Event "FIDE WYCC Open U14 2023"]
[Site "Montesilvano"]
[Date "2023.11.14"]
[Round "2.35"]
[White "Kabylbek, Yedil"]
[Black "Tao, Sihan"]
[Result "1/2-1/2"]
[ECO "E06"]
[WhiteElo "1710"]
[BlackElo "2122"]
[Annotator "NA"]
[PlyCount "71"]
[EventDate "2023.11.13"]
[EventType "swiss"]
[EventCountry "ITA"]
[SourceTitle "playchess.com"]
[Source "ChessBase"]
[SourceQuality "1"]
[TimeControl "40/5400+30:1800+30"]

1. d4 {[%emt 0:00:04]} Nf6 {[%emt 0:00:07]} 2. c4 {[%emt 0:00:30]} e6 {[%emt 0:00:30]} 3. g3 {[%emt 0:00:00]} d5 {[%emt 0:00:07]} 4. Bg2 {[%emt 0:00:00]} Be7 5. Nf3 {[%emt 0:00:01]} O-O {[%emt 0:00:12]} 6. O-O {[%emt 0:00:02]} dxc4 {[%emt 0:00:06]} 7. Ne5 {[%emt 0:00:03]} Nc6 {[%emt 0:00:08]} 8. Bxc6 {[%emt 0:00:06]} bxc6 {[%emt 0:00:04]} 9. Nxc6 {[%emt 0:00:03]} Qe8 {[%emt 0:00:09]} 10. Nxe7+ {[%emt 0:00:04]} Qxe7 {[%emt 0:00:05]} 11. Na3 {[%emt 0:00:05]} c5 {[%emt 0:09:52]} 12. dxc5 {[%emt 0:00:31]} Qxc5 {[%emt 0:01:10]} 13. Qc2 {[%emt 0:01:55]} Bb7 {[%emt 0:06:31]} 14. Be3 {[%emt 0:02:13]} Qh5 {[%emt 0:07:29]} 15. f3 {[%emt 0:05:55]} Rfc8 {[%emt 0:04:36]} 16. Rac1 {[%emt 0:09:49]} Nd5 {[%emt 0:02:24]} 17. Bd2 {[%emt 0:01:40]} Ba6 {[%emt 0:22:56]} 18. Qa4 {[%emt 0:04:03]} Qe5 {[%emt 0:09:29]} 19. e4 {[%emt 0:07:38]} c3 {[%emt 0:15:45]} 20. Qxa6 {[%emt 0:02:47]} Nb4 {[%emt 0:01:18]} 21. Qe2 {[%emt 0:04:24]} cxd2 {[%emt 0:00:05]} 22. Qxd2 {[%emt 0:01:04]} Nxa2 {[%emt 0:00:16]} 23. Rxc8+ {[%emt 0:05:13]} Rxc8 {[%emt 0:00:01]} 24. Rd1 {[%emt 0:00:11]} h5 {[%emt 0:00:51]} 25. Qd4 {[%emt 0:03:01]} Qb8 {[%emt 0:03:01]} 26. Nc4 {[%emt 0:01:53]} Qb3 {[%emt 0:01:50]} 27. Ne5 {[%emt 0:04:02]} Nb4 {[%emt 0:02:27]} 28. Qd7 {[%emt 0:01:47]} Rf8 {[%emt 0:01:03]} 29. Rd2 {[%emt 0:04:04]} Qe3+ {[%emt 0:01:37]} 30. Kg2 {[%emt 0:00:12]} h4 {[%emt 0:02:49]} 31. Qd4 {[%emt 0:16:28]} Qxd4 {[%emt 0:01:38]} 32. Rxd4 {[%emt 0:00:01]} Rb8 {[%emt 0:00:01]} 33. Rd7 {[%emt 0:03:09]} hxg3 {[%emt 0:00:39]} 34. hxg3 {[%emt 0:01:52]} f6 {[%emt 0:01:08]} 35. Nc4 {[%emt 0:00:08]} a6 {[%emt 0:00:53]} 36. f4 {[%emt 0:01:01]} 1/2-1/2

[Event "FIDE WYCC Open U14 2023"]
[Site "Montesilvano"]
[Date "2023.11.15"]
[Round "3.1"]
[White "Daakshin Arun"]
[Black "Tregubenko, Nikolay"]
[Result "1-0"]
[ECO "E73"]
[WhiteElo "2342"]
[BlackElo "2138"]
[Annotator "RC"]
[PlyCount "77"]
[EventDate "2023.11.13"]
[EventType "swiss"]
[EventCountry "ITA"]
[SourceTitle "playchess.com"]
[Source "ChessBase"]
[SourceQuality "1"]
[TimeControl "40/5400+30:1800+30"]

1. d4 {[%emt 0:00:16]} Nf6 {[%emt 0:00:29]} 2. c4 {[%emt 0:00:21]} g6 {[%emt 0:00:28]} 3. Nc3 {[%emt 0:00:06]} Bg7 {[%emt 0:00:07]} 4. e4 {[%emt 0:00:06]} d6 {[%emt 0:00:15]} 5. Be2 {[%emt 0:00:35]} O-O {[%emt 0:00:13]} 6. h4 {[%emt 0:00:26]} c5 {[%emt 0:01:20]} 7. d5 {[%emt 0:00:23]} e6 {[%emt 0:00:11]} 8. h5 {[%emt 0:00:29]} exd5 {[%emt 0:00:09]} 9. exd5 {[%emt 0:00:14]} Re8 {[%emt 0:00:35]} 10. h6 {[%emt 0:00:19]} Bh8 {[%emt 0:00:20]} 11. Bg5 {[%emt 0:00:22]} Qb6 {[%emt 0:03:41]} 12. b3 {[%emt 0:01:37]} Ne4 {[%emt 0:00:37]} 13. Nxe4 {[%emt 0:00:07]} Rxe4 {[%emt 0:00:07]} 14. Kf1 {[%emt 0:00:24]} Nd7 {[%emt 0:04:49]} 15. Nf3 {[%emt 0:01:13]} Re8 {[%emt 0:11:50]} 16. Rc1 {[%emt 0:00:22]} Ne5 {[%emt 0:01:27]} 17. g3 {[%emt 0:02:14]} a5 {[%emt 0:00:30]} 18. Kg2 {[%emt 0:00:30]} a4 {[%emt 0:08:45]} 19. Re1 axb3 {[%emt 0:05:47]} 20. axb3 {[%emt 0:09:20]} Nxf3 {[%emt 0:12:24]} 21. Bxf3 {[%emt 0:01:53]} Bf5 {[%emt 0:03:24]} 22. Ra1 {[%emt 0:10:53]} Be5 {[%emt 0:08:23]} 23. Rxa8 {[%emt 0:08:22]} Rxa8 {[%emt 0:00:08]} 24. Bg4 {[%emt 0:02:10]} Bxg4 {[%emt 0:02:16]} 25. Qxg4 {[%emt 0:00:07]} f5 {[%emt 0:20:49]} 26. Qf3 {[%emt 0:04:04]} Re8 {[%emt 0:06:09]} 27. Qd1 {[%emt 0:06:22]} Rf8 {[%emt 0:04:50]} 28. f4 {[%emt 0:01:00]} Bf6 {[%emt 0:00:36]} 29. Bxf6 {[%emt 0:00:37]} Rxf6 {[%emt 0:00:01]} 30. Re8+ {[%emt 0:00:56]} Rf8 {[%emt 0:00:09]} 31. Qa1 {[%emt 0:01:18]} Kf7 {[%emt 0:00:09]} 32. Rxf8+ Kxf8 {[%emt 0:00:01]} 33. Qh8+ {[%emt 0:00:23]} Ke7 {[%emt 0:00:21]} 34. Qxh7+ {[%emt 0:00:12]} Kd8 {[%emt 0:00:04]} 35. Qg8+ {[%emt 0:00:15]} Kc7 {[%emt 0:00:06]} 36. h7 {[%emt 0:00:45]} Qxb3 {[%emt 0:01:32]} 37. h8=Q {[%emt 0:00:09]} Qc2+ {[%emt 0:00:12]} 38. Kh3 {[%emt 0:00:05]} Qf2 {[%emt 0:00:08]} 39. Qd8# 1-0